[Event "*** Titled Tuesday Blitz"]
[Site "Chess.com"]
[Date "2019.06.04"]
[Round "10"]
[White "Borsuk_Konstantin"]
[Black "awesomevishesh"]
[Result "1-0"]
[WhiteElo "2614"]
[BlackElo "2453"]
[TimeControl "180+2"]
[EndTime "15:20:09 PDT"]
[Termination "Borsuk_Konstantin won by resignation"]

1. d4 {[%clk 0:03:01.9]} 1... Nf6 {[%clk 0:03:00.3]} 2. c4 {[%clk 0:03:02.6]}
2... g6 {[%clk 0:03:01.4]} 3. Nc3 {[%clk 0:03:03.1]} 3... Bg7 {[%clk 0:03:02.5]}
4. e4 {[%clk 0:03:03.9]} 4... d6 {[%clk 0:03:03.6]} 5. f3 {[%clk 0:03:04.1]}
5... O-O {[%clk 0:03:04.3]} 6. Be3 {[%clk 0:03:05.3]} 6... a6 {[%clk 0:03:05.1]}
7. Qd2 {[%clk 0:03:04.7]} 7... c6 {[%clk 0:03:05.1]} 8. a4 {[%clk 0:03:03.5]}
8... a5 {[%clk 0:03:04.9]} 9. Nge2 {[%clk 0:03:01.4]} 9... Na6 {[%clk
0:03:04.4]} 10. g4 {[%clk 0:03:01.9]} 10... e5 {[%clk 0:03:03]} 11. d5 {[%clk
0:03:00.2]} 11... Nc5 {[%clk 0:03:00.3]} 12. Bxc5 {[%clk 0:02:48]} 12... dxc5
{[%clk 0:03:00.3]} 13. Ng3 {[%clk 0:02:47]} 13... cxd5 {[%clk 0:02:10]} 14. cxd5
{[%clk 0:02:45.6]} 14... Ne8 {[%clk 0:02:10.9]} 15. h4 {[%clk 0:02:44.7]} 15...
h6 {[%clk 0:02:06.7]} 16. h5 {[%clk 0:02:30]} 16... g5 {[%clk 0:02:03.3]} 17.
Qe3 {[%clk 0:02:26.1]} 17... b6 {[%clk 0:02:02.4]} 18. Nb5 {[%clk 0:02:22.3]}
18... Nd6 {[%clk 0:02:03.3]} 19. Nxd6 {[%clk 0:02:23.1]} 19... Qxd6 {[%clk
0:02:04.3]} 20. Bb5 {[%clk 0:02:23.5]} 20... Rd8 {[%clk 0:01:59.7]} 21. Rc1
{[%clk 0:02:22.9]} 21... Bf8 {[%clk 0:01:49.8]} 22. Ke2 {[%clk 0:02:13]} 22...
Rb8 {[%clk 0:01:46.4]} 23. Rc3 {[%clk 0:02:13.3]} 23... Qf6 {[%clk 0:01:43]} 24.
Rhc1 {[%clk 0:02:12.9]} 24... Bd6 {[%clk 0:01:42.5]} 25. Nf1 {[%clk 0:02:12.6]}
25... Qe7 {[%clk 0:01:29.9]} 26. Nd2 {[%clk 0:02:12.2]} 26... f6 {[%clk
0:01:27.8]} 27. Nc4 {[%clk 0:02:12]} 27... Kg7 {[%clk 0:01:28.6]} 28. Rb3 {[%clk
0:02:12.9]} 28... Qc7 {[%clk 0:01:14.3]} 29. Kd2 {[%clk 0:02:03.2]} 29... Qa7
{[%clk 0:01:07.9]} 30. Kc2 {[%clk 0:02:03.5]} 30... Qc7 {[%clk 0:01:07.9]} 31.
Kb1 {[%clk 0:02:04.4]} 31... Qa7 {[%clk 0:01:04.1]} 32. Na3 {[%clk 0:02:03.4]}
32... Qe7 {[%clk 0:01:04]} 33. Qd3 {[%clk 0:02:03.9]} 33... Qc7 {[%clk
0:01:03.1]} 34. Ba6 {[%clk 0:02:03.7]} 34... Bd7 {[%clk 0:00:59.6]} 35. Bb5
{[%clk 0:02:04.8]} 35... Bc8 {[%clk 0:01:00.1]} 36. Nc4 {[%clk 0:01:56.5]} 36...
Qe7 {[%clk 0:00:57.2]} 37. Ne3 {[%clk 0:01:57.1]} 37... Qc7 {[%clk 0:00:55.9]}
38. Bc6 {[%clk 0:01:55.1]} 38... Qe7 {[%clk 0:00:52.5]} 39. Qc4 {[%clk
0:01:55.8]} 39... Qa7 {[%clk 0:00:49.3]} 40. Rcc3 {[%clk 0:01:54.9]} 40... Qe7
{[%clk 0:00:44.2]} 41. Rb5 {[%clk 0:01:54.9]} 41... Bc7 {[%clk 0:00:37.4]} 42.
Qb3 {[%clk 0:01:48]} 42... Rd6 {[%clk 0:00:19.8]} 43. Nc4 {[%clk 0:01:46.1]}
43... Rxc6 {[%clk 0:00:20.4]} 44. dxc6 {[%clk 0:01:46.9]} 44... Be6 {[%clk
0:00:21.4]} 45. Qc2 {[%clk 0:01:34.5]} 45... Qe8 {[%clk 0:00:20.3]} 46. Ne3
{[%clk 0:01:25.1]} 46... Qxc6 {[%clk 0:00:21]} 47. Rd3 {[%clk 0:01:26]} 47...
Rd8 {[%clk 0:00:13.4]} 48. Rxd8 {[%clk 0:01:26]} 48... Bxd8 {[%clk 0:00:13.9]}
49. Qd3 {[%clk 0:01:25.2]} 49... Be7 {[%clk 0:00:11.5]} 50. Nf5+ {[%clk
0:01:20]} 50... Kh7 {[%clk 0:00:11.5]} 51. Nxe7 {[%clk 0:01:20.5]} 51... Qe8
{[%clk 0:00:10.8]} 52. Nd5 {[%clk 0:01:18.4]} 52... Bxd5 {[%clk 0:00:09.8]} 53.
Qxd5 {[%clk 0:01:18.8]} 53... Kg7 {[%clk 0:00:10.3]} 1-0

[Event "*** Titled Tuesday Blitz"]
[Site "Chess.com"]
[Date "2019.06.04"]
[Round "10"]
[White "LazovT"]
[Black "MatthewG-p4p"]
[Result "0-1"]
[WhiteElo "2617"]
[BlackElo "2792"]
[TimeControl "180+2"]
[EndTime "15:20:18 PDT"]
[Termination "MatthewG-p4p won by resignation"]

1. e4 {[%clk 0:02:40.9]} 1... e6 {[%clk 0:02:58.4]} 2. d4 {[%clk 0:02:41.4]}
2... d5 {[%clk 0:02:51.2]} 3. Nd2 {[%clk 0:02:42.8]} 3... a6 {[%clk 0:02:51.9]}
4. Ngf3 {[%clk 0:02:41.9]} 4... Nf6 {[%clk 0:02:52.6]} 5. e5 {[%clk 0:02:40.1]}
5... Nfd7 {[%clk 0:02:53]} 6. Bd3 {[%clk 0:02:42]} 6... c5 {[%clk 0:02:54.4]} 7.
c3 {[%clk 0:02:43.5]} 7... Nc6 {[%clk 0:02:55.9]} 8. O-O {[%clk 0:02:41.5]} 8...
g5 {[%clk 0:02:56.6]} 9. Qe2 {[%clk 0:02:28]} 9... g4 {[%clk 0:02:55.4]} 10. Ne1
{[%clk 0:02:29.1]} 10... cxd4 {[%clk 0:02:55.8]} 11. cxd4 {[%clk 0:02:29.8]}
11... Nxd4 {[%clk 0:02:51.3]} 12. Qxg4 {[%clk 0:02:30.6]} 12... Nc6 {[%clk
0:02:52.9]} 13. f4 {[%clk 0:02:29.7]} 13... h5 {[%clk 0:02:42.3]} 14. Qh3 {[%clk
0:02:23.6]} 14... Nc5 {[%clk 0:02:34.8]} 15. Be2 {[%clk 0:02:08.5]} 15... h4
{[%clk 0:02:26.7]} 16. Nd3 {[%clk 0:02:08]} 16... Qb6 {[%clk 0:02:24]} 17. Kh1
{[%clk 0:02:07]} 17... Bd7 {[%clk 0:02:22.3]} 18. Nxc5 {[%clk 0:02:06.8]} 18...
Bxc5 {[%clk 0:02:22.7]} 19. Nf3 {[%clk 0:02:06]} 19... O-O-O {[%clk 0:02:19.3]}
20. a3 {[%clk 0:02:03.1]} 20... Kb8 {[%clk 0:02:18.8]} 21. Ng5 {[%clk
0:01:57.8]} 21... Rdf8 {[%clk 0:02:19.1]} 22. b4 {[%clk 0:01:52.4]} 22... Be7
{[%clk 0:02:15.9]} 23. Rb1 {[%clk 0:01:26.4]} 23... Na7 {[%clk 0:01:52.4]} 24.
Be3 {[%clk 0:01:24.5]} 24... Qd8 {[%clk 0:01:53.7]} 25. Nf3 {[%clk 0:01:11.1]}
25... Nb5 {[%clk 0:01:48.6]} 26. Rb3 {[%clk 0:01:07.5]} 26... d4 {[%clk
0:01:07.2]} 27. Nxd4 {[%clk 0:01:02.3]} 27... Nxd4 {[%clk 0:01:09.1]} 28. Bxd4
{[%clk 0:01:03.3]} 28... Ba4 {[%clk 0:01:09.8]} 29. Rd3 {[%clk 0:01:03.2]} 29...
Qc7 {[%clk 0:01:10.8]} 30. Rc3 {[%clk 0:00:58.3]} 30... Qd7 {[%clk 0:01:11.1]}
31. Qe3 {[%clk 0:00:57.3]} 31... h3 {[%clk 0:01:05.7]} 32. g3 {[%clk 0:00:58]}
32... Rc8 {[%clk 0:01:05.2]} 33. Rfc1 {[%clk 0:00:47.2]} 33... Bc6+ {[%clk
0:01:05.1]} 34. Kg1 {[%clk 0:00:41.4]} 34... Qd5 {[%clk 0:00:40.5]} 35. Kf2
{[%clk 0:00:38.8]} 35... Rhd8 {[%clk 0:00:37.2]} 36. Ba7+ {[%clk 0:00:23.5]}
36... Ka8 {[%clk 0:00:38.3]} 37. Rxc6 {[%clk 0:00:21.9]} 37... Rxc6 {[%clk
0:00:37.2]} 38. Bb6 {[%clk 0:00:17.3]} 38... Qg2+ {[%clk 0:00:30.9]} 39. Ke1
{[%clk 0:00:18.3]} 39... Qh1+ {[%clk 0:00:23.1]} 40. Bf1 {[%clk 0:00:17.9]}
40... Rdc8 {[%clk 0:00:23.6]} 41. Rxc6 {[%clk 0:00:17.2]} 41... Rxc6 {[%clk
0:00:23.4]} 42. Bd4 {[%clk 0:00:18.2]} 42... Qxh2 {[%clk 0:00:20]} 43. Qd3
{[%clk 0:00:15.8]} 43... Rc1+ {[%clk 0:00:17.8]} 0-1

[Event "*** Titled Tuesday Blitz"]
[Site "Chess.com"]
[Date "2019.06.04"]
[Round "10"]
[White "NoGalloNoParty"]
[Black "26andrej26"]
[Result "0-1"]
[WhiteElo "2386"]
[BlackElo "2512"]
[TimeControl "180+2"]
[EndTime "15:20:21 PDT"]
[Termination "26andrej26 won on time"]

1. Nf3 {[%clk 0:02:59.4]} 1... Nf6 {[%clk 0:02:30.8]} 2. c4 {[%clk 0:02:59.7]}
2... g6 {[%clk 0:02:30.3]} 3. g3 {[%clk 0:02:59.9]} 3... d6 {[%clk 0:02:32.2]}
4. Bg2 {[%clk 0:03:01.1]} 4... Bg7 {[%clk 0:02:34.1]} 5. Nc3 {[%clk 0:03:01.5]}
5... O-O {[%clk 0:02:36]} 6. d4 {[%clk 0:03:02.4]} 6... a6 {[%clk 0:02:37.9]} 7.
O-O {[%clk 0:03:02.8]} 7... Nc6 {[%clk 0:02:38.7]} 8. Bf4 {[%clk 0:02:43.8]}
8... Bd7 {[%clk 0:02:36.5]} 9. Rc1 {[%clk 0:02:42.6]} 9... Rb8 {[%clk
0:02:35.6]} 10. b3 {[%clk 0:02:34.7]} 10... b5 {[%clk 0:02:35.6]} 11. Nd5 {[%clk
0:02:35.2]} 11... bxc4 {[%clk 0:02:32.3]} 12. Nxf6+ {[%clk 0:02:10]} 12... Bxf6
{[%clk 0:02:25.8]} 13. Rxc4 {[%clk 0:02:10.5]} 13... Nxd4 {[%clk 0:01:11.2]} 14.
Nxd4 {[%clk 0:02:08.2]} 14... e5 {[%clk 0:01:12.2]} 15. Bh6 {[%clk 0:01:56.5]}
15... exd4 {[%clk 0:01:13]} 16. Bxf8 {[%clk 0:01:54.2]} 16... Kxf8 {[%clk
0:01:14.3]} 17. Rxd4 {[%clk 0:01:36.3]} 17... Bxd4 {[%clk 0:01:14.6]} 18. Qxd4
{[%clk 0:01:28.8]} 18... Kg8 {[%clk 0:01:16.1]} 19. h4 {[%clk 0:01:21.3]} 19...
Rb5 {[%clk 0:01:05.6]} 20. Rc1 {[%clk 0:01:03.4]} 20... a5 {[%clk 0:00:48]} 21.
e3 {[%clk 0:00:55.9]} 21... h5 {[%clk 0:00:19.8]} 22. Bf1 {[%clk 0:00:41.4]}
22... Re5 {[%clk 0:00:19.9]} 23. Qa7 {[%clk 0:00:37.3]} 23... c6 {[%clk
0:00:15.8]} 24. Bg2 {[%clk 0:00:31.5]} 24... d5 {[%clk 0:00:16.5]} 25. Rc5
{[%clk 0:00:26.8]} 25... Bf5 {[%clk 0:00:09.7]} 26. Rxc6 {[%clk 0:00:21.8]}
26... Be4 {[%clk 0:00:09.1]} 27. Qa6 {[%clk 0:00:17]} 27... Re8 {[%clk
0:00:09.2]} 28. Rd6 {[%clk 0:00:14.5]} 28... Qe7 {[%clk 0:00:08.1]} 29. Bf1
{[%clk 0:00:14.5]} 29... Kg7 {[%clk 0:00:07.4]} 30. Qb6 {[%clk 0:00:14.9]} 30...
Rc8 {[%clk 0:00:07.6]} 31. Qd4+ {[%clk 0:00:15.8]} 31... Kg8 {[%clk 0:00:08]}
32. Rb6 {[%clk 0:00:16]} 32... Qc7 {[%clk 0:00:07.1]} 33. Rf6 {[%clk 0:00:11.2]}
33... Qe7 {[%clk 0:00:02.9]} 34. Rf4 {[%clk 0:00:11.6]} 34... Rc1 {[%clk
0:00:03.6]} 35. f3 {[%clk 0:00:09.9]} 35... Bf5 {[%clk 0:00:04.6]} 36. Qxd5
{[%clk 0:00:10.8]} 36... Qxe3+ {[%clk 0:00:05.6]} 37. Kh2 {[%clk 0:00:11.2]}
37... Rc2+ {[%clk 0:00:07]} 38. Bg2 {[%clk 0:00:11.8]} 38... Qf2 {[%clk
0:00:08.4]} 39. Qd8+ {[%clk 0:00:12.5]} 39... Kh7 {[%clk 0:00:09.5]} 0-1

[Event "*** Titled Tuesday Blitz"]
[Site "Chess.com"]
[Date "2019.06.04"]
[Round "10"]
[White "rasmussvane"]
[Black "wonderfultime"]
[Result "1-0"]
[WhiteElo "2908"]
[BlackElo "3002"]
[TimeControl "180+2"]
[EndTime "15:20:22 PDT"]
[Termination "rasmussvane won by resignation"]

1. Nf3 {[%clk 0:03:01.9]} 1... Nf6 {[%clk 0:02:54.1]} 2. c4 {[%clk 0:03:02.8]}
2... c6 {[%clk 0:02:55.2]} 3. d4 {[%clk 0:03:03.1]} 3... d5 {[%clk 0:02:56.6]}
4. Nbd2 {[%clk 0:03:04.8]} 4... Bf5 {[%clk 0:02:48.3]} 5. Nh4 {[%clk 0:03:05.8]}
5... Be6 {[%clk 0:02:46.4]} 6. e3 {[%clk 0:03:06.7]} 6... g6 {[%clk 0:02:47.9]}
7. b3 {[%clk 0:03:08.2]} 7... Bg7 {[%clk 0:02:49.1]} 8. Bb2 {[%clk 0:03:09.8]}
8... O-O {[%clk 0:02:50.5]} 9. Be2 {[%clk 0:03:11.2]} 9... a5 {[%clk 0:02:33.4]}
10. O-O {[%clk 0:03:07.3]} 10... Nbd7 {[%clk 0:02:32.5]} 11. cxd5 {[%clk
0:02:57.5]} 11... cxd5 {[%clk 0:02:31.1]} 12. a4 {[%clk 0:02:54.2]} 12... Qb6
{[%clk 0:02:28.9]} 13. Ba3 {[%clk 0:02:53.4]} 13... Rfe8 {[%clk 0:02:28.9]} 14.
Rc1 {[%clk 0:02:53.4]} 14... g5 {[%clk 0:02:07.8]} 15. Nhf3 {[%clk 0:02:53.6]}
15... h6 {[%clk 0:02:09.4]} 16. Bb5 {[%clk 0:02:52.8]} 16... Bf8 {[%clk
0:02:00]} 17. Qc2 {[%clk 0:02:30.1]} 17... Red8 {[%clk 0:01:49.4]} 18. Qc7
{[%clk 0:02:30]} 18... Qa7 {[%clk 0:01:36.5]} 19. h3 {[%clk 0:01:54.4]} 19...
Ne4 {[%clk 0:01:23.2]} 20. Nxe4 {[%clk 0:01:49.5]} 20... dxe4 {[%clk 0:01:25.1]}
21. Nd2 {[%clk 0:01:50.9]} 21... Nf6 {[%clk 0:01:26.3]} 22. Bxe7 {[%clk
0:01:32.7]} 22... Nd5 {[%clk 0:01:27.2]} 23. Qxd8 {[%clk 0:01:31.1]} 23... Rxd8
{[%clk 0:01:25.6]} 24. Bxd8 {[%clk 0:01:32.1]} 24... Qb8 {[%clk 0:01:22.2]} 25.
Bxa5 {[%clk 0:01:27.5]} 25... b6 {[%clk 0:01:23.7]} 26. Bc3 {[%clk 0:01:28.4]}
26... Ba3 {[%clk 0:01:00]} 27. Rc2 {[%clk 0:01:28.8]} 27... Bxh3 {[%clk
0:01:01.3]} 28. gxh3 {[%clk 0:01:27.4]} 28... Nxe3 {[%clk 0:01:01.2]} 29. Ra2
{[%clk 0:01:08.9]} 29... Nxf1 {[%clk 0:00:55]} 30. Bxf1 {[%clk 0:01:10]} 30...
e3 {[%clk 0:00:50.6]} 31. Rxa3 {[%clk 0:01:07.3]} 31... Qf4 {[%clk 0:00:38.7]}
32. fxe3 {[%clk 0:01:04.2]} 32... Qxe3+ {[%clk 0:00:38.8]} 33. Kg2 {[%clk
0:01:05.7]} 33... Qxc3 {[%clk 0:00:38.8]} 34. Ra2 {[%clk 0:01:05.6]} 34... Qxd4
{[%clk 0:00:40]} 35. Bc4 {[%clk 0:01:02.9]} 35... Kg7 {[%clk 0:00:39.2]} 36. Nf3
{[%clk 0:01:03.7]} 36... Qc3 {[%clk 0:00:40.2]} 37. Re2 {[%clk 0:01:02.8]} 37...
f5 {[%clk 0:00:38.9]} 38. Re7+ {[%clk 0:01:02]} 38... Kf8 {[%clk 0:00:39]} 39.
Re6 {[%clk 0:00:50.8]} 39... g4 {[%clk 0:00:31.8]} 40. hxg4 {[%clk 0:00:50.7]}
40... fxg4 {[%clk 0:00:33.7]} 41. Ne5 {[%clk 0:00:47.4]} 41... Qh3+ {[%clk
0:00:34.7]} 42. Kf2 {[%clk 0:00:48.8]} 42... g3+ {[%clk 0:00:36.1]} 43. Ke2
{[%clk 0:00:45.7]} 43... Qg2+ {[%clk 0:00:32.4]} 44. Kd3 {[%clk 0:00:43.4]}
44... Qf1+ {[%clk 0:00:33.1]} 45. Ke4 {[%clk 0:00:39.7]} 45... Qe1+ {[%clk
0:00:31.8]} 46. Kf5 {[%clk 0:00:39.6]} 46... Qf2+ {[%clk 0:00:10.3]} 47. Kg6
{[%clk 0:00:40.6]} 47... Qd4 {[%clk 0:00:11.5]} 48. Rf6+ {[%clk 0:00:36.3]}
48... Ke8 {[%clk 0:00:12.9]} 49. Bb5+ {[%clk 0:00:37.1]} 49... Kd8 {[%clk
0:00:10.8]} 50. Nc6+ {[%clk 0:00:38.2]} 1-0

[Event "*** Titled Tuesday Blitz"]
[Site "Chess.com"]
[Date "2019.06.04"]
[Round "10"]
[White "riconaipe"]
[Black "marianokar"]
[Result "1/2-1/2"]
[WhiteElo "2562"]
[BlackElo "2428"]
[TimeControl "180+2"]
[EndTime "15:20:26 PDT"]
[Termination "Game drawn by repetition"]

1. d4 {[%clk 0:03:01.9]} 1... Nf6 {[%clk 0:03:00]} 2. c4 {[%clk 0:03:02.5]} 2...
e6 {[%clk 0:03:01.1]} 3. Nc3 {[%clk 0:02:56.1]} 3... Bb4 {[%clk 0:03:00.5]} 4.
Nf3 {[%clk 0:02:57.3]} 4... b6 {[%clk 0:03:00.1]} 5. Bg5 {[%clk 0:02:58.8]} 5...
Bb7 {[%clk 0:03:00.9]} 6. Nd2 {[%clk 0:03:00.2]} 6... Bxc3 {[%clk 0:03:00.9]} 7.
bxc3 {[%clk 0:03:00.6]} 7... d6 {[%clk 0:03:01.5]} 8. Qc2 {[%clk 0:02:57.7]}
8... Nbd7 {[%clk 0:03:00.3]} 9. e4 {[%clk 0:02:58.7]} 9... e5 {[%clk 0:03:00.8]}
10. f3 {[%clk 0:02:55.5]} 10... h6 {[%clk 0:03:00.2]} 11. Be3 {[%clk 0:02:55.1]}
11... Nf8 {[%clk 0:02:40.5]} 12. Be2 {[%clk 0:02:54.9]} 12... Ng6 {[%clk
0:02:40.5]} 13. g3 {[%clk 0:02:56.1]} 13... h5 {[%clk 0:02:34.2]} 14. Qb3 {[%clk
0:02:54]} 14... h4 {[%clk 0:02:29.6]} 15. Kf2 {[%clk 0:02:55]} 15... c5 {[%clk
0:02:25.7]} 16. a4 {[%clk 0:02:53.2]} 16... a5 {[%clk 0:02:01.2]} 17. Rab1
{[%clk 0:02:52.6]} 17... Nd7 {[%clk 0:02:00]} 18. f4 {[%clk 0:02:41.9]} 18...
exf4 {[%clk 0:01:41.7]} 19. gxf4 {[%clk 0:02:42.3]} 19... Nxf4 {[%clk
0:01:40.3]} 20. Bxf4 {[%clk 0:02:41.2]} 20... Qf6 {[%clk 0:01:41.9]} 21. Ke3
{[%clk 0:02:34.7]} 21... g5 {[%clk 0:01:42.9]} 22. Rhf1 {[%clk 0:02:34.8]} 22...
gxf4+ {[%clk 0:01:40.9]} 23. Rxf4 {[%clk 0:02:36.5]} 23... Qh6 {[%clk
0:01:33.1]} 24. Rf1 {[%clk 0:02:31.3]} 24... O-O-O {[%clk 0:01:17]} 25. Kd3
{[%clk 0:02:20.8]} 25... Rhf8 {[%clk 0:00:37.8]} 26. Bg4 {[%clk 0:02:20.3]}
26... Kc7 {[%clk 0:00:38.7]} 27. Rxf7 {[%clk 0:02:18.7]} 27... Rxf7 {[%clk
0:00:33.1]} 28. Rxf7 {[%clk 0:02:19.5]} 28... Bc8 {[%clk 0:00:35]} 29. d5 {[%clk
0:02:06.3]} 29... Qg6 {[%clk 0:00:31.9]} 30. Be6 {[%clk 0:02:04.6]} 30... Qg1
{[%clk 0:00:15.7]} 31. Qb5 {[%clk 0:01:57.5]} 31... Qxh2 {[%clk 0:00:07.1]} 32.
Qc6+ {[%clk 0:01:50.5]} 32... Kb8 {[%clk 0:00:08]} 33. Bxd7 {[%clk 0:01:45.5]}
33... Qg3+ {[%clk 0:00:07.3]} 34. Kc2 {[%clk 0:01:45.6]} 34... Bxd7 {[%clk
0:00:07]} 35. Rxd7 {[%clk 0:01:30.7]} 35... Rxd7 {[%clk 0:00:07.7]} 36. Qxd7
{[%clk 0:01:32.1]} 36... h3 {[%clk 0:00:09.6]} 37. Qe8+ {[%clk 0:01:31.3]} 37...
Kb7 {[%clk 0:00:09.7]} 38. e5 {[%clk 0:01:25.9]} 38... h2 {[%clk 0:00:10.8]} 39.
Qc6+ {[%clk 0:01:23.7]} 39... Ka7 {[%clk 0:00:09.2]} 40. Qc7+ {[%clk 0:01:07]}
40... Ka6 {[%clk 0:00:08]} 41. Qc8+ {[%clk 0:01:05.1]} 41... Ka7 {[%clk
0:00:05.7]} 42. Qd7+ {[%clk 0:01:06.1]} 42... Ka6 {[%clk 0:00:05.6]} 43. e6
{[%clk 0:01:05.1]} 43... h1=Q {[%clk 0:00:05.9]} 44. e7 {[%clk 0:01:02.9]} 44...
Qh7+ {[%clk 0:00:06.4]} 45. Kb3 {[%clk 0:01:03]} 45... Qgd3 {[%clk 0:00:04.4]}
46. Qc8+ {[%clk 0:00:43.3]} 46... Ka7 {[%clk 0:00:04.5]} 47. Qd7+ {[%clk
0:00:42.7]} 47... Ka6 {[%clk 0:00:04.9]} 48. Qb5+ {[%clk 0:00:44.1]} 48... Ka7
{[%clk 0:00:05.9]} 49. Qd7+ {[%clk 0:00:41.8]} 49... Ka6 {[%clk 0:00:06.5]}
1/2-1/2

[Event "*** Titled Tuesday Blitz"]
[Site "Chess.com"]
[Date "2019.06.04"]
[Round "10"]
[White "mikhaillushenkov"]
[Black "Korchmar_Vasiliy"]
[Result "0-1"]
[WhiteElo "2719"]
[BlackElo "2798"]
[TimeControl "180+2"]
[EndTime "15:20:41 PDT"]
[Termination "Korchmar_Vasiliy won by resignation"]

1. Nf3 {[%clk 0:03:01.9]} 1... d5 {[%clk 0:03:01.1]} 2. d4 {[%clk 0:03:02.9]}
2... Nf6 {[%clk 0:03:01.7]} 3. c4 {[%clk 0:03:04]} 3... c6 {[%clk 0:02:54.3]} 4.
Nc3 {[%clk 0:03:04.8]} 4... a6 {[%clk 0:02:54.3]} 5. Ne5 {[%clk 0:03:05.2]} 5...
Nbd7 {[%clk 0:02:49.4]} 6. Bf4 {[%clk 0:02:54.5]} 6... e6 {[%clk 0:02:47.7]} 7.
e3 {[%clk 0:02:55.3]} 7... Nxe5 {[%clk 0:02:42.9]} 8. Bxe5 {[%clk 0:02:55.9]}
8... Be7 {[%clk 0:02:38.7]} 9. Bd3 {[%clk 0:02:54.6]} 9... dxc4 {[%clk
0:02:38.8]} 10. Bxc4 {[%clk 0:02:55.8]} 10... b5 {[%clk 0:02:40]} 11. Be2 {[%clk
0:02:51.1]} 11... Bb7 {[%clk 0:02:41.1]} 12. Bf3 {[%clk 0:02:52.4]} 12... Qb6
{[%clk 0:02:16.2]} 13. Bxf6 {[%clk 0:02:38.8]} 13... Bxf6 {[%clk 0:02:14.5]} 14.
Ne4 {[%clk 0:02:39.5]} 14... Be7 {[%clk 0:02:10.2]} 15. O-O {[%clk 0:02:25.5]}
15... f5 {[%clk 0:02:10.9]} 16. Nc5 {[%clk 0:02:23.2]} 16... Bxc5 {[%clk
0:02:08.9]} 17. dxc5 {[%clk 0:02:25.1]} 17... Qxc5 {[%clk 0:02:10.6]} 18. Rc1
{[%clk 0:02:26.5]} 18... Qe7 {[%clk 0:01:43.9]} 19. Bxc6+ {[%clk 0:02:21]} 19...
Bxc6 {[%clk 0:01:45.1]} 20. Rxc6 {[%clk 0:02:22.9]} 20... O-O {[%clk 0:01:46.3]}
21. Qb3 {[%clk 0:02:22.1]} 21... Rfe8 {[%clk 0:01:36.5]} 22. Rfc1 {[%clk
0:02:20.7]} 22... Kh8 {[%clk 0:01:13.1]} 23. Qc3 {[%clk 0:01:58.8]} 23... Red8
{[%clk 0:00:57.4]} 24. Qe5 {[%clk 0:01:50.3]} 24... Qd7 {[%clk 0:00:37.5]} 25.
h3 {[%clk 0:01:18.5]} 25... Rac8 {[%clk 0:00:38.6]} 26. Rc7 {[%clk 0:01:15.6]}
26... Rxc7 {[%clk 0:00:39.8]} 27. Rxc7 {[%clk 0:01:17.5]} 27... Qd1+ {[%clk
0:00:41.4]} 28. Kh2 {[%clk 0:01:18.6]} 28... Rg8 {[%clk 0:00:42.5]} 29. Qxe6
{[%clk 0:01:13.5]} 29... Qd8 {[%clk 0:00:15.3]} 30. Rf7 {[%clk 0:01:02.2]} 30...
Qd2 {[%clk 0:00:13.8]} 31. Qxf5 {[%clk 0:00:59.5]} 31... Qxb2 {[%clk 0:00:14.3]}
32. Qe6 {[%clk 0:00:47.8]} 32... a5 {[%clk 0:00:11.5]} 33. f4 {[%clk 0:00:41.4]}
33... b4 {[%clk 0:00:08.3]} 34. Re7 {[%clk 0:00:40]} 34... h6 {[%clk 0:00:08.7]}
35. e4 {[%clk 0:00:29]} 35... a4 {[%clk 0:00:09.4]} 36. e5 {[%clk 0:00:30]}
36... b3 {[%clk 0:00:05.6]} 37. axb3 {[%clk 0:00:31.1]} 37... a3 {[%clk
0:00:07.1]} 38. f5 {[%clk 0:00:20.2]} 38... Qf2 {[%clk 0:00:05.9]} 39. f6 {[%clk
0:00:10.2]} 39... Qf4+ {[%clk 0:00:06]} 40. Kg1 {[%clk 0:00:10.8]} 40... a2
{[%clk 0:00:04]} 41. fxg7+ {[%clk 0:00:04]} 41... Kh7 {[%clk 0:00:04.8]} 42. Ra7
{[%clk 0:00:03.5]} 42... Qd4+ {[%clk 0:00:06]} 43. Kh2 {[%clk 0:00:04.8]} 43...
Qxa7 {[%clk 0:00:07.3]} 44. Qf5+ {[%clk 0:00:06.4]} 44... Kxg7 {[%clk
0:00:08.1]} 45. Qf6+ {[%clk 0:00:08]} 45... Kh7 {[%clk 0:00:09.3]} 46. Qf5+
{[%clk 0:00:09]} 46... Rg6 {[%clk 0:00:10.6]} 0-1